bitfinex/quotes_ETHUSD_20251111
["timestamp","ask_amount","ask_price","bid_price","bid_amount"]
[1762852723004,0.652,3572.7,3572.6,0.9374]
[1762852724109,0.652,3572.7,3572.6,0.4862]
[1762852724311,4.90184004,3572.8,3572.6,0.4862]
[1762852724515,0.652,3572.7,3572.6,0.4862]
[1762852725082,3.50080355,3572.7,3572.4,0.001]
[1762852725288,3.70817402,3572.6,3572.4,0.001]
[1762852725529,6.5073048,3572.6,3572.4,0.001]
[1762852725726,4.54939968,3572.6,3572.4,0.001]
[1762852725906,0.0542,3572.5,3572.4,0.001]
[1762852726225,4.54939968,3572.6,3572.4,0.001]
[1762852726619,3.70817402,3572.6,3572.4,0.001]
[1762852726806,4.54939732,3572.6,3572.4,0.001]
[1762852727003,0.652,3572.5,3572.4,0.001]
[1762852727417,0.652,3572.5,3572.4,0.4872]
[1762852728232,0.6512,3572.5,3572.4,0.4872]
[1762852728409,0.6512,3572.5,3572.4,0.001]
[1762852730715,0.6512,3572.5,3572.4,0.4872]
[1762852731034,0.6512,3572.5,3572.4,0.4123]
[1762852732247,3.57446025,3572.5,3572.1,0.1976]
[1762852732537,3.70817402,3572.3,3572.1,0.001]
[1762852732750,0.652,3572.2,3572.1,0.001]
[1762852733148,0.652,3572.2,3572.1,0.4872]
[1762852735145,0.652,3572.2,3572.1,0.001]
[1762852737052,0.652,3572.2,3572.1,0.9049]
[1762852737937,0.652,3572.2,3572.1,3.70437369]
[1762852738852,1.261712,3572.7,3572.1,1.503804]
[1762852739015,0.652,3572.6,3572.2,3.25135107]
[1762852739214,0.652,3572.6,3572.2,0.452]
[1762852739410,0.652,3572.6,3572.3,0.452]
[1762852740447,0.652,3572.6,3572.5,0.4519]
[1762852741243,0.652,3572.6,3572.5,0.9039]
[1762852741444,0.652,3572.6,3572.5,0.4519]
[1762852741847,0.652,3572.6,3572.3,0.452]
[1762852742771,4.96988602,3572.7,3572.3,0.452]
[1762852742772,0.652,3572.5,3572.3,0.452]
[1762852743182,1.261712,3572.7,3572.4,0.4519]
[1762852743374,0.002,3572.7,3572.6,3.6564859]
[1762852743576,0.654,3572.7,3572.6,3.6564859]
[1762852743758,0.654,3572.7,3572.6,4.1084859]
[1762852744161,0.002,3572.7,3572.6,4.1084859]
[1762852744344,0.654,3572.7,3572.6,8.89328086]
[1762852744544,0.654,3572.7,3572.6,5.18510684]
[1762852745567,0.558,3572.7,3572.6,8.89328086]
[1762852745750,0.558,3572.7,3572.6,5.18510684]
[1762852747581,0.558,3572.7,3572.6,8.89328086]
[1762852748085,0.558,3572.7,3572.6,5.18510684]
[1762852752200,0.5572,3572.7,3572.6,5.18510684]
[1762852753806,0.6532,3572.7,3572.6,5.18510684]
[1762852757377,0.0012,3572.7,3572.6,5.18510684]
[1762852757573,0.6522,3572.7,3572.6,5.18510684]
[1762852757991,0.0012,3572.7,3572.6,5.18510684]
[1762852758203,0.6522,3572.7,3572.6,5.18510684]
[1762852759108,0.0012,3572.7,3572.6,5.18510684]
[1762852759967,0.0012,3572.7,3572.6,7.18390684]
[1762852760978,0.0012,3572.7,3572.6,10.57981622]
[1762852761876,0.0012,3572.7,3572.6,7.18390684]
[1762852762075,0.0012,3572.7,3572.6,10.57981622]
[1762852765021,0.0012,3572.7,3572.6,10.58081622]
[1762852765886,0.0012,3572.7,3572.6,7.18490684]
[1762852770282,0.0012,3572.7,3572.6,6.32740284]
[1762852770483,0.0012,3572.7,3572.6,5.2507819]
[1762852770726,0.0012,3572.7,3572.6,6.1079859]
[1762852771237,0.0012,3572.7,3572.6,5.7024819]
[1762852771385,0.0012,3572.7,3572.6,6.1079859]
[1762852771785,0.0012,3572.7,3572.6,4.1091859]
[1762852772505,0.0012,3572.7,3572.6,4.43630422]
[1762852772902,0.0012,3572.7,3572.6,3.98460422]
[1762852773092,0.0012,3572.7,3572.6,3.6574859]
[1762852773293,0.0012,3572.7,3572.6,3.2055859]
[1762852773493,0.0012,3572.7,3572.6,3.6885859]
[1762852774117,0.099,3572.7,3572.6,0.001]
[1762852774320,0.5549,3572.7,3572.6,0.001]
[1762852776292,0.5541,3572.7,3572.6,0.001]
[1762852780061,0.0982,3572.7,3572.6,0.001]
[1762852780219,0.5541,3572.7,3572.6,0.001]
[1762852783147,3.35310355,3572.7,3572.6,0.001]
[1762852783650,4.61281555,3572.7,3572.6,0.001]
[1762852789071,5.26381555,3572.7,3572.6,0.001]
[1762852795247,2.464812,3572.7,3572.6,0.001]
[1762852795449,5.26381555,3572.7,3572.6,0.001]
[1762852798444,4.80791555,3572.7,3572.6,0.001]
[1762852798682,5.26401555,3572.7,3572.6,0.001]
[1762852800256,5.26321555,3572.7,3572.6,0.001]
[1762852801056,1.910712,3572.7,3572.6,0.001]
[1762852801261,1.259712,3572.7,3572.6,0.496]
[1762852801456,1.910712,3572.7,3572.6,0.496]
[1762852801663,4.77781555,3572.7,3572.6,0.001]
[1762852802370,1.261712,3572.7,3572.6,0.496]
[1762852802576,1.911712,3572.7,3572.6,0.9763]
[1762852803388,0.652,3572.7,3572.6,0.9763]
[1762852805277,0.002,3572.7,3572.6,0.9763]
[1762852805585,0.002,3572.7,3572.6,4.83835993]
[1762852805777,0.652,3572.7,3572.6,4.83835993]
[1762852806085,0.002,3572.7,3572.6,4.83835993]
[1762852806282,0.652,3572.7,3572.6,4.83835993]
[1762852806966,0.002,3572.7,3572.6,4.83835993]
[1762852807290,0.652,3572.7,3572.6,4.83835993]
[1762852809490,0.002,3572.7,3572.6,4.83835993]
[1762852812598,0.652,3572.7,3572.6,4.83835993]
[1762852813670,0.002,3572.7,3572.6,4.83835993]
[1762852818715,0.002,3572.7,3572.6,6.83715993]
[1762852822916,0.002,3572.7,3572.6,10.54203925]
[1762852823521,0.002,3572.7,3572.6,9.80295125]
[1762852824501,0.0012,3572.7,3572.6,9.80295125]
[1762852827415,0.0012,3572.7,3572.6,11.80175125]
[1762852830744,0.0012,3572.7,3572.6,9.80295125]
[1762852831634,0.0012,3572.7,3572.6,10.45195125]
[1762852835054,0.002,3573.5,3572.6,10.45195125]
[1762852835055,1e-08,3573.2,3573.1,0.6579]
[1762852835349,1e-08,3573.2,3573.1,9.34387243]
[1762852835513,1e-08,3573.2,3573.1,9.31588553]
[1762852838339,0.002,3573.5,3573.4,3.66595925]
[1762852838340,1e-08,3573.5,3573.4,3.66595925]
[1762852838547,1e-08,3573.5,3573.4,4.92567125]
[1762852838854,1e-08,3573.5,3573.4,10.71842092]
[1762852840139,1e-08,3573.5,3573.4,12.71722092]
[1762852845360,1e-08,3573.5,3573.4,12.22802092]
[1762852845549,0.54910001,3573.5,3573.4,8.0611416]
[1762852845764,0.45910001,3573.5,3573.4,8.0611416]
[1762852846185,0.54910001,3573.5,3573.4,7.6556376]
[1762852846376,0.54910001,3573.5,3573.4,6.05696725]
[1762852846546,0.54910001,3573.5,3573.4,6.46247125]
[1762852847898,0.45910001,3573.5,3573.4,6.46247125]
[1762852848398,0.45830001,3573.5,3573.4,6.46247125]
[1762852850367,0.54830001,3573.5,3573.4,6.46247125]
[1762852850570,0.54830001,3573.5,3573.4,5.20275925]
[1762852850883,0.54830001,3573.5,3573.4,3.20395925]
[1762852851397,0.45830001,3573.5,3573.4,3.2319438]
[1762852851599,0.45830001,3573.5,3573.4,4.09415604]
[1762852851811,0.002,3573.7,3573.6,3.20380263]
[1762852851970,0.4822,3573.7,3573.6,3.20380263]
[1762852852171,0.5498,3573.7,3573.6,3.20380263]
[1762852855362,0.0696,3573.7,3573.6,3.20380263]
[1762852856215,0.5227,3573.7,3573.6,3.20380263]
[1762852858048,0.0696,3573.7,3573.6,3.20380263]
[1762852858451,0.002,3573.7,3573.6,4.96770842]
[1762852858624,0.002,3573.7,3573.6,4.47520842]
[1762852859511,0.002,3573.7,3573.6,4.96770842]
[1762852859714,0.002,3573.7,3573.6,6.22742042]
[1762852860233,0.002,3573.7,3573.6,8.22622042]
[1762852861872,0.002,3573.7,3573.6,6.22742042]
[1762852865440,1e-08,3574.3,3574.2,3.86363288]
[1762852865637,1e-08,3574.3,3574.2,9.90872539]
[1762852865869,1e-08,3574.3,3574.2,9.9687242]
[1762852868897,0.6398,3575.4,3574.2,9.9687242]
[1762852868898,0.002,3575.5,3575.0,2.79720279]
[1762852869097,0.002,3575.5,3575.0,4.05691479]
[1762852869305,0.4551,3575.5,3575.0,4.8948159]
[1762852870102,0.4551,3575.5,3575.0,8.59969522]
[1762852870450,0.002,3575.5,3575.0,8.59969522]
[1762852870655,0.5467,3575.1,3575.0,4.8948159]
[1762852870894,0.0972,3575.1,3575.0,4.8948159]
[1762852871548,0.002,3575.1,3575.0,9.07099522]
[1762852871751,0.0972,3575.1,3575.0,4.8948159]
[1762852872194,0.0964,3575.1,3575.0,4.8948159]
[1762852873587,0.0012,3575.1,3575.0,8.59969522]
[1762852874669,0.0012,3575.1,3575.0,9.07099522]
[1762852875585,0.0964,3575.1,3575.0,4.8948159]
[1762852875908,0.0012,3575.1,3575.0,5.3661159]
[1762852876584,0.0012,3575.1,3575.0,5.8586159]
[1762852877296,0.0012,3575.1,3575.0,7.8574159]
[1762852879304,0.0012,3575.1,3575.0,16.3874159]
[1762852879804,0.0012,3575.1,3575.0,15.8949159]
[1762852880210,0.0012,3575.1,3575.0,16.3874159]
[1762852880536,1e-08,3575.5,3575.4,3.86269385]
[1762852880683,1e-08,3575.5,3575.4,14.01266793]
[1762852881025,1e-08,3575.5,3575.4,14.50516793]
[1762852881489,1e-08,3575.9,3575.8,8.1666723]
[1762852881684,1e-08,3575.9,3575.8,9.7784723]
[1762852882399,1e-08,3575.9,3575.8,10.21097349]
[1762852882712,0.01,3576.9,3576.5,4.46124563]
[1762852882871,0.01,3576.9,3576.5,9.64963167]
[1762852883276,0.1482,3577.8,3577.3,3.20090835]
[1762852883483,0.002,3577.8,3577.3,7.05979439]
[1762852883725,0.002,3577.8,3577.3,8.81200639]
[1762852883928,0.002,3577.8,3577.3,10.05645676]
[1762852884244,1e-08,3577.9,3577.8,3.20051769]
[1762852884391,1e-08,3577.9,3577.8,8.31911573]
[1762852884724,1e-08,3577.9,3577.8,8.81161573]
[1762852888336,0.012,3578.9,3577.8,8.81161573]
[1762852888634,0.012,3578.9,3578.5,8.31946899]
[1762852888939,0.012,3578.9,3578.5,8.96646899]
[1762852889136,0.012,3578.9,3578.5,9.46146899]
[1762852889525,0.002,3578.7,3578.5,9.46146899]
[1762852889704,0.002,3579.0,3578.9,0.405504]
[1762852889905,0.002,3579.0,3578.9,9.46115666]
[1762852890134,0.002,3579.0,3578.9,10.96892871]
[1762852890351,0.002,3579.0,3578.9,7.9142772]
[1762852890509,0.002,3579.0,3578.9,11.30186324]
[1762852891004,0.002,3579.0,3578.9,10.96892871]
[1762852891207,0.002,3579.0,3578.9,11.3328549]
[1762852891627,0.002,3579.0,3578.9,10.96892871]
[1762852892617,0.002,3579.0,3578.9,11.33018824]
[1762852892819,0.4563,3580.6,3580.5,3.19841001]
[1762852893417,0.5472,3580.6,3580.5,3.19841001]
[1762852895066,0.5472,3580.6,3579.7,4.64729804]
[1762852895067,0.5472,3580.6,3579.4,2.7937267]
[1762852895365,0.4563,3580.5,3578.8,0.1877]
[1762852895538,0.0928,3579.3,3579.2,2.79392042]
[1762852895940,0.0928,3579.3,3578.1,2.99247562]
[1762852895941,0.5454,3579.3,3578.1,4.08028604]
[1762852896177,0.0037,3579.1,3579.0,2.79407435]
[1762852897030,0.0037,3579.1,3579.0,3.19957835]
[1762852898848,0.1868,3579.4,3579.3,2.79384237]
[1762852899342,0.1868,3579.4,3578.6,0.647]
[1762852899343,0.6476,3579.4,3578.6,1.052504]
[1762852899546,0.0867,3579.2,3578.6,3.44134014]
[1762852899759,0.4563,3579.3,3579.2,3.19942442]
[1762852900065,0.1868,3579.4,3579.3,3.19934637]
[1762852900364,0.1868,3579.4,3579.1,2.79394252]
[1762852900365,0.4608,3579.2,3579.1,2.79394252]
[1762852900551,0.4608,3579.2,3579.1,3.19944652]
[1762852900758,0.4608,3579.2,3579.1,5.19824652]
[1762852900759,0.5475,3579.2,3579.1,5.19824652]
[1762852901346,0.5475,3579.2,3579.1,2.404304]
[1762852901541,0.5475,3579.2,3579.1,5.19830249]
[1762852902277,0.5475,3579.2,3579.1,2.404304]
[1762852902774,0.4608,3579.2,3579.1,2.404304]
[1762852903142,0.5475,3579.2,3579.1,5.19830249]
[1762852903342,0.4608,3579.2,3579.1,5.19830249]
[1762852904797,0.647,3579.6,3579.5,3.19919026]
[1762852904943,0.647,3579.6,3579.5,0.405504]
[1762852905145,0.739,3579.6,3579.5,3.19919026]
[1762852905354,1.1916,3579.6,3579.5,3.19919026]
[1762852905683,0.739,3579.6,3579.5,3.19919026]
[1762852906558,0.002,3580.6,3579.7,0.405504]
[1762852906761,0.002,3580.6,3580.5,2.79290601]
[1762852907154,0.094,3580.6,3580.5,2.79290601]
[1762852907589,0.002,3580.6,3580.5,3.19841001]
[1762852907754,0.002,3580.6,3580.5,3.67061001]
[1762852908549,0.002,3580.6,3580.5,4.36647061]
[1762852909307,0.002,3580.6,3580.5,3.67061001]
[1762852909680,0.002,3580.6,3580.5,3.69853907]
[1762852909884,0.002,3580.6,3580.5,4.16561001]
[1762852910144,0.002,3580.6,3580.5,3.67061001]
[1762852910480,0.002,3580.6,3580.5,4.16561001]
[1762852911522,0.002,3580.6,3580.5,5.59999967]
[1762852911712,0.002,3580.6,3580.5,6.83178261]
[1762852914189,1e-08,3580.9,3580.8,4.10920602]
[1762852914520,1e-08,3580.9,3580.8,5.51991802]
[1762852914710,1e-08,3580.9,3580.8,6.01491802]
[1762852915021,1e-08,3580.9,3580.8,7.25102322]
[1762852915420,1e-08,3580.9,3580.8,7.22652322]
[1762852915628,1e-08,3580.9,3580.8,6.58052322]
[1762852915923,1e-08,3580.9,3580.8,6.75602322]
[1762852917422,1e-08,3580.9,3580.8,6.11002322]
[1762852917585,0.73100001,3580.9,3580.8,2.73650202]
[1762852918235,1e-08,3580.9,3580.8,2.73650202]
[1762852918442,0.05820001,3580.9,3580.8,3.14200602]
[1762852918648,0.24360001,3580.9,3580.8,3.14200602]
[1762852918929,0.72290001,3580.9,3580.8,3.14200602]
[1762852919839,0.72290001,3580.9,3580.8,4.70158336]
[1762852919840,1e-08,3580.9,3580.8,4.70158336]
[1762852920249,0.00120001,3581.0,3580.9,4.93391004]
[1762852920597,0.00120001,3581.0,3580.9,5.42391004]
[1762852920920,0.00120001,3581.0,3580.9,4.93391004]
[1762852921094,0.00120001,3581.0,3580.9,7.03263275]
[1762852921902,0.07120001,3581.0,3580.9,4.80682075]
[1762852922104,0.54640001,3581.0,3580.9,2.79259404]
[1762852922430,0.54640001,3581.0,3580.9,3.19809804]
[1762852922431,0.07120001,3581.0,3580.9,3.19809804]
[1762852922610,0.54640001,3581.0,3580.9,3.19809804]
[1762852922805,0.54640001,3581.0,3580.9,2.79259404]
[1762852924634,0.07120001,3581.0,3580.9,3.19809804]
[1762852927605,0.54640001,3581.0,3580.9,3.19809804]
[1762852927804,0.00120001,3581.0,3580.9,4.76327638]
[1762852928246,0.00120001,3581.0,3580.9,6.02298838]
[1762852928664,0.00120001,3581.0,3580.9,6.42053029]
[1762852929040,0.002,3581.8,3581.7,3.19747429]
[1762852929243,0.002,3581.8,3581.7,3.67357429]
[1762852929757,0.002,3581.8,3581.7,4.32013779]
[1762852929961,0.002,3581.8,3581.7,4.81013779]
[1762852930365,0.002,3581.8,3581.7,3.84403779]
[1762852930937,0.0711,3581.8,3581.7,3.84403779]
[1762852931151,0.2033,3581.8,3581.7,3.19747429]
[1762852931357,0.6792,3581.8,3581.7,3.19747429]
[1762852932047,0.6792,3581.8,3580.9,3.39162709]
[1762852932230,0.4793,3581.7,3581.6,2.79204824]
[1762852932658,0.5491,3581.7,3581.6,2.79204824]
[1762852933261,0.545,3581.7,3581.6,2.79204824]
[1762852936673,0.545,3581.7,3581.5,2.79205109]
[1762852936830,0.545,3581.7,3581.6,2.79204824]
[1762852937030,0.4752,3581.7,3581.6,2.79204824]
[1762852937252,0.5498,3581.7,3581.6,2.79204824]
[1762852937466,0.0746,3581.7,3581.6,3.19755224]
[1762852939382,0.5458,3581.7,3581.6,3.19755224]
[1762852940784,0.5478,3581.7,3581.0,8.53]
[1762852940982,0.4732,3581.7,3581.5,2.79210964]
[1762852941346,0.0786,3581.6,3581.5,2.79210964]
[1762852941999,0.7246,3581.6,3581.5,3.19761364]
[1762852942354,0.002,3581.7,3581.6,3.19755224]
[1762852942753,0.0726,3581.7,3581.6,3.22547272]
[1762852943053,0.0726,3581.7,3581.6,3.19755224]
[1762852944293,0.0718,3581.7,3581.6,3.19755224]
[1762852944455,0.547,3581.7,3581.6,3.19755224]
[1762852944649,0.547,3581.7,3581.6,2.79204824]
[1762852945584,0.0012,3581.7,3581.6,2.79204824]
[1762852945792,0.0976,3581.7,3581.6,2.79204824]
[1762852946085,0.098,3581.7,3581.6,2.79204824]
[1762852947133,0.098,3581.7,3581.6,3.19755224]
[1762852947436,0.547,3581.7,3581.6,2.79204824]
[1762852948004,0.098,3581.7,3581.6,2.79204824]
[1762852948340,0.098,3581.7,3581.6,3.19755224]
[1762852948529,0.0012,3581.7,3581.6,3.64775224]
[1762852948695,0.0012,3581.7,3581.6,4.49162103]
[1762852951005,0.0012,3581.7,3581.6,4.04142103]
[1762852951722,0.0976,3581.7,3581.6,3.19755224]
[1762852952724,0.0012,3581.7,3581.6,4.11005224]
[1762852952900,0.0012,3581.7,3581.6,3.64775224]
[1762852953099,0.0976,3581.7,3581.6,3.19755224]
[1762852953692,0.0012,3581.7,3581.6,3.19755224]
[1762852954123,0.0012,3581.7,3581.6,3.64775224]
[1762852954786,0.0012,3581.7,3581.6,3.19755224]
[1762852954987,0.0012,3581.7,3581.6,3.64775224]
[1762852955283,0.0976,3581.7,3581.6,3.19755224]
[1762852955489,0.1012,3581.7,3581.6,3.19755224]
[1762852956025,0.0012,3581.7,3581.6,3.19755224]
[1762852956417,0.1012,3581.7,3581.6,3.19755224]
[1762852957946,0.5471,3581.7,3581.6,3.19755224]
[1762852958093,0.1012,3581.7,3581.6,3.19755224]
[1762852958449,0.0012,3581.7,3581.6,3.19755224]
[1762852958798,0.098,3581.7,3581.6,3.19755224]
[1762852959599,0.547,3581.7,3581.6,2.79204824]
[1762852960925,0.098,3581.7,3581.6,3.19755224]
[1762852961439,0.547,3581.7,3581.6,3.19755224]
[1762852961800,0.547,3581.7,3581.6,2.79204824]
[1762852964902,0.098,3581.7,3581.6,2.79204824]
[1762852965538,0.547,3581.7,3581.6,2.79204824]
[1762852965712,0.547,3581.7,3581.4,0.001]
[1762852965904,0.4502,3581.7,3581.5,2.79206866]
[1762852966330,0.1003,3581.6,3581.5,2.79206866]
[1762852966602,0.1003,3581.6,3581.4,2.79318258]
[1762852966803,0.5494,3581.5,3581.4,2.79318258]
[1762852968125,0.5486,3581.5,3581.4,2.79318258]
[1762852969610,0.0968,3581.5,3581.4,2.79318258]
[1762852971647,0.7428,3581.5,3581.4,2.79318258]
[1762852971846,0.0968,3581.5,3581.4,2.79318258]
[1762852972031,0.7428,3581.5,3581.4,2.79318258]
[1762852975863,1.1903,3581.5,3581.4,0.001]
[1762852978119,1.1923,3581.5,3581.4,0.001]
[1762852979759,0.7448,3581.5,3581.4,2.79320416]
[1762852979914,0.002,3581.5,3581.4,3.52292458]
[1762852980117,0.322,3581.5,3581.4,3.52292458]
[1762852980318,0.002,3581.5,3581.4,4.38682858]
[1762852980856,0.002,3581.5,3581.4,8.07309689]
[1762852982850,0.002,3581.5,3581.4,4.38682858]
[1762852983622,0.002,3581.5,3581.4,2.79320416]
[1762852984339,0.0587,3581.5,3581.4,2.79320416]
[1762852984941,0.002,3581.5,3581.4,2.79320416]
[1762852985338,0.002,3581.5,3581.4,3.24360416]
[1762852985638,0.002,3581.5,3581.4,3.70200416]
[1762852985851,0.002,3581.5,3581.4,4.3514339]
[1762852986560,0.002,3581.5,3581.4,4.2985379]
[1762852986780,0.002,3581.5,3581.4,4.7569379]
[1762852987826,0.002,3581.5,3581.4,4.2985379]
[1762852988032,0.002,3581.5,3581.4,3.8481379]
[1762852988467,0.002,3581.5,3581.4,3.4426339]
[1762852988468,0.0587,3581.5,3581.4,3.4426339]
[1762852988861,0.002,3581.5,3581.4,3.8930339]
[1762852989071,0.0587,3581.5,3581.4,2.79320416]
[1762852989267,0.5463,3581.5,3581.4,0.001]
[1762852989471,0.5463,3581.5,3581.4,2.79320416]
[1762852989686,0.002,3581.5,3581.4,3.24360416]
[1762852990304,0.002,3581.5,3581.4,2.79320416]
[1762852991259,0.002,3581.5,3581.4,3.24360416]
[1762852991784,0.002,3581.5,3581.4,4.75694206]
[1762852992289,0.0012,3581.5,3581.4,3.84814206]
[1762852992585,0.0012,3581.5,3581.4,4.29854206]
[1762852992945,0.0012,3581.5,3581.4,4.7848641]
[1762852993145,0.0012,3581.5,3581.4,4.75694206]
[1762852997399,0.0012,3581.5,3581.4,6.75574206]
[1762852998566,0.0012,3581.5,3581.4,6.29734206]
[1762852998766,0.0012,3581.5,3581.4,6.75574206]
[1762852998966,0.0012,3581.5,3581.4,6.29734206]
[1762853000004,0.0012,3581.5,3581.4,5.84694206]
[1762853000198,0.0012,3581.5,3581.4,5.19750816]
[1762853000874,0.0012,3581.5,3581.4,5.64790816]
[1762853001276,0.0012,3581.5,3581.4,6.10630816]
[1762853003592,0.4989,3581.5,3581.4,5.19750816]
[1762853004602,0.0012,3581.5,3581.4,5.19750816]
[1762853004809,0.0012,3581.5,3581.4,6.44689246]
[1762853005118,0.0012,3581.5,3581.4,10.13372589]
[1762853005825,0.0012,3581.5,3581.4,9.68332589]
[1762853006326,0.0012,3581.5,3581.4,10.15642589]
[1762853006925,0.0012,3581.5,3581.4,6.46959246]
[1762853007124,0.0012,3581.5,3581.4,6.95849246]
[1762853008826,0.0012,3581.5,3581.4,6.46959246]
[1762853009122,0.0801,3581.5,3581.4,5.99649246]
[1762853010220,0.0012,3581.5,3581.4,5.99649246]
[1762853010491,0.0012,3581.5,3581.4,6.21940446]
[1762853011091,0.0012,3581.5,3581.4,6.86540446]
[1762853015638,0.0012,3581.5,3581.4,8.86420446]
[1762853016136,0.0004,3581.5,3581.4,8.86420446]
[1762853016299,0.0004,3581.5,3581.4,7.72930446]
[1762853016504,0.0004,3581.5,3581.4,11.10899548]
[1762853018607,0.0004,3581.5,3581.4,11.59789548]
[1762853020527,0.0004,3581.5,3581.4,10.63589548]
[1762853021246,0.0004,3581.5,3581.4,11.10899548]
[1762853021623,0.0004,3581.5,3581.4,9.37618348]
[1762853021624,0.0793,3581.5,3581.4,9.37618348]
[1762853021823,0.0793,3581.5,3581.4,8.17169518]
[1762853022622,0.0004,3581.5,3581.4,8.57719918]
[1762853024247,0.0004,3581.5,3581.4,9.05029918]
[1762853025553,0.0831,3581.5,3581.4,8.57719918]
[1762853025919,0.5457,3581.5,3581.4,2.79320416]
[1762853028057,0.0004,3581.5,3581.4,2.79320416]
[1762853028357,0.0004,3581.5,3581.4,7.54251818]
[1762853028732,0.0869,3581.5,3581.4,7.06941818]
[1762853028916,0.0869,3581.5,3581.4,6.17289518]
[1762853029949,0.0004,3581.5,3581.4,6.17289518]
[1762853030157,0.0004,3581.5,3581.4,6.64599518]
[1762853030343,0.0004,3581.5,3581.4,7.05149918]
[1762853030540,0.0004,3581.5,3581.4,7.54039918]
[1762853030736,0.0004,3581.5,3581.4,8.28465258]
[1762853032356,0.0793,3581.5,3581.4,6.57839918]
[1762853032736,0.0793,3581.5,3581.4,3.19870816]
[1762853033829,0.5457,3581.5,3581.4,3.19870816]
[1762853034456,0.0793,3581.5,3581.4,2.94870816]
[1762853034644,0.0793,3581.5,3581.4,2.90657816]
[1762853035666,0.0793,3581.5,3581.4,4.90537816]
[1762853036898,0.5457,3581.5,3581.1,1.9988]
[1762853037169,0.4668,3581.5,3581.3,2.7922702]
[1762853037351,0.4668,3581.5,3581.0,8.531]
[1762853037352,0.4668,3581.5,3581.4,2.79220416]
[1762853037538,0.0004,3581.5,3581.4,2.79220416]
[1762853037740,0.0645,3581.5,3581.4,2.79220416]
[1762853038138,0.5455,3581.5,3581.4,2.79220416]
[1762853040136,0.0637,3581.5,3581.4,2.79220416]
[1762853040340,0.5447,3581.5,3581.4,2.79220416]
[1762853040866,0.0637,3581.5,3581.4,2.79220416]
[1762853041086,0.0012,3581.7,3581.6,2.79204824]
[1762853041389,0.0503,3581.5,3581.0,8.936504]
[1762853041547,1.1446,3581.7,3581.0,8.936504]
[1762853041748,0.0012,3581.7,3581.6,2.79204824]
[1762853041979,0.6462,3581.7,3581.6,2.79204824]
[1762853042177,0.0012,3581.7,3581.6,2.79204824]
[1762853042376,0.6462,3581.7,3581.6,2.79204824]
[1762853042573,0.0515,3581.7,3581.6,2.79204824]
[1762853042752,0.6462,3581.7,3581.6,2.79204824]
[1762853043163,0.0012,3581.7,3581.6,3.26774824]
[1762853043584,0.0012,3581.7,3581.6,2.79204824]
[1762853043892,0.0519,3581.7,3581.6,2.79204824]
[1762853046468,0.5466,3581.7,3581.6,2.79204824]
[1762853047704,0.0012,3581.7,3581.6,9.34157387]
[1762853047850,0.0012,3581.7,3581.6,5.49148285]
[1762853048058,0.0519,3581.7,3581.6,2.79204824]
[1762853049307,0.0012,3581.7,3581.6,3.67325224]
[1762853049672,0.0012,3581.7,3581.6,4.17157272]
[1762853049870,0.0012,3581.7,3581.6,4.14365224]
[1762853050105,0.0012,3581.7,3581.6,5.17530036]
[1762853050303,0.0012,3581.7,3581.6,6.43501236]
[1762853053306,0.0012,3581.7,3581.6,8.43381236]
[1762853057223,0.0012,3581.7,3581.6,7.96341236]
[1762853057527,0.0012,3581.7,3581.6,6.45606424]
[1762853057528,0.0523,3581.7,3581.6,6.45606424]
[1762853057831,0.0523,3581.7,3581.6,4.79084824]
[1762853058182,0.0523,3581.7,3581.6,2.79204824]
[1762853058512,0.547,3581.7,3581.6,2.79204824]
[1762853058981,0.0523,3581.7,3581.6,2.79204824]
[1762853059179,0.547,3581.7,3581.6,2.79204824]
[1762853059382,0.0523,3581.7,3581.6,2.79204824]
[1762853061495,0.0012,3581.7,3581.6,3.26774824]
[1762853062379,0.0012,3581.7,3581.6,3.29566872]
[1762853062578,0.0012,3581.7,3581.6,3.26774824]
[1762853063652,0.1826,3581.7,3581.6,2.79204824]
[1762853063798,0.0012,3581.7,3581.6,2.79204824]
[1762853064197,0.0004,3581.7,3581.6,2.79204824]
[1762853065937,0.1836,3581.7,3581.6,2.79204824]
[1762853067934,0.1836,3581.7,3581.6,4.79084824]
[1762853070136,0.0004,3581.7,3581.6,4.79084824]
[1762853072635,0.0004,3581.7,3581.6,5.28554824]
[1762853074257,0.0004,3581.7,3581.6,8.97248664]
[1762853074405,0.0004,3581.7,3581.6,10.14914909]
[1762853074606,0.0004,3581.7,3581.6,10.63364909]
[1762853074885,0.0004,3581.7,3581.6,11.03915309]
[1762853077537,0.0004,3581.7,3581.6,7.35221469]
[1762853077725,0.0004,3581.7,3581.6,11.03915309]
[1762853083070,0.0004,3581.7,3581.6,11.04015309]
[1762853083976,0.0004,3581.7,3581.6,6.87231469]
[1762853084266,0.0004,3581.7,3581.6,11.02375309]
[1762853085667,0.0004,3581.7,3581.6,10.06095309]
[1762853085668,0.0958,3581.7,3581.6,10.06095309]
[1762853085977,0.0958,3581.7,3581.6,4.79184824]
[1762853087063,0.5459,3581.7,3581.6,4.79184824]
[1762853088286,0.5451,3581.7,3581.6,4.79184824]
[1762853088879,0.095,3581.7,3581.6,4.79184824]
[1762853089065,1.1901,3581.7,3581.6,4.79184824]
[1762853095103,0.74,3581.7,3581.6,4.79184824]
[1762853096055,0.095,3581.7,3581.6,4.79184824]
[1762853096255,0.74,3581.7,3581.6,4.79184824]
[1762853100397,0.645,3581.7,3581.6,4.79184824]
[1762853100692,0.002,3581.8,3581.7,2.79197029]
[1762853100859,0.647,3581.8,3581.7,4.79077029]
[1762853101262,0.647,3581.8,3581.7,5.25557029]
[1762853101502,0.647,3581.8,3581.7,4.79077029]
[1762853102000,1.196,3581.8,3581.6,0.001]
[1762853102160,0.4874,3581.7,3581.6,2.79304143]
[1762853102759,0.6463,3581.7,3581.6,2.79304143]
[1762853103364,1.1212,3581.7,3581.6,2.79304143]
[1762853103563,0.4762,3581.7,3581.6,2.79304143]